Workbook

Sheet Instructions
B4: Description:
B6: This workbook contains a simplified version of The Brattle Group's proprietary simulation model used to test demand curve performance in PJM. All cells highlighted in green are user inputs; all cells highlighted in orange are user outputs. Please see the instructions below on how to run the simplified model and how to create a user-defined demand curve.
B8: Instructions:
B10: Only adjust the input cells, highlighted in green, otherwise the model could break.
B12: How To Run a Simulation: | D12: Cell Color Coding:
B13: 1) Go to the [Auction Simulation] tab | D13: user input
B14: 2) Select the appropriate demand curve from the pre-populated list in cell B4 | D14: user input error
B15: Note: Use the scroll bar in the Demand Curve list to view all available selections | D15: user output
B16: 3) Adjust the total offer quantity in cell D4
B17: 4) Click the "Calculate Clearing Price" button to run the auction
B19: How To Create a User-Defined Demand Curve:
B20: 1) Go to the [Demand Curve Parameters] tab
B21: 2) Set the price for the first point in cell F5
B22: 3) Fill in the remaining quantities and prices.
B23: Note:
B24: i. The user-defined curve can handle up to 10 points
B25: ii. Quantities need to be inputted as a % of RR and in ascending order
B26: iii. Prices need to be inputted as a % of Net CONE and in descending order
B27: iv. See [Auction Simulation] tab, cells B40 and B42, for RR and Net CONE values
B28: 4) Go to the [Auction Simulation] tab and select "User-Defined Curve" from the Demand Curve list, as described above in Step 2 of "How To Run a Simulation"
B29: 5) Run the simulation, as described above in Steps 3 and 4 of "How to Run a Simulation"
B31: Notes:
B33: The supply curve core shape is based on historical PJM offers, using a smoothed version of the supply curve from a specific historical auction. This supply curve shape does not change in this simplified model; however, the user can shift the curve right or left by adjusting the "total offer quantity", as described above in Step 3 of "How to Run a Simulation".
B35: This model is not a Monte Carlo simulation model. The results contained herein are not intended to exactly replicate those presented by The Brattle Group in our report or other stakeholder materials, as those results came from a more complex Monte Carlo analysis that tested demand curve performance over a distribution of draws with shocks to supply and demand.

Sheet Model --> (hidden)

Sheet Auction Simulation
B2: Inputs | H2: Output | T2: Clearing Automation | X2: Demand Curve Options
B3: Demand Curve Selection (Drop-down Below) | D3: Total Offer Quantity (MW must be > 150,000) | H3: Auction Clearing Results | L3: Input Demand Curve Definition | P3: Corresponding Demand Curve Parameters | T3: Initial Quantity | U3: =D4-$M$62 -> 113841.4336 | V3: 160101.4336
B4: Current VRR Curve | D4: 160000 | I4: Current Run | J4: Previous Run | M4: Quantity (UCAP RM %) | N4: Price (% of Net Cone) | P4: MW | Q4: LOLE | R4: ($/MW-d) | T4: SC Price | U4: =Interpolate($P$19:$P$69,$N$19:$N$69,$V$3) -> 700.4438 | X4: User-Defined Curve
H5: Price ($/MW-d) | I5: 495.8 | J5: 495.8 | L5: Point 1 | M5: =IFERROR(ROUND(INDEX('Demand Curve Parameters'!$H$4:$K$49,MATCH(VALUE(MID($L5,FIND(" ",$L5)+1,10)),'Demand Curve Parameters'!$H$4:$H$49,0),MATCH(M$4,'Demand Curve Parameters'!$H$4:$K$4,0)),5),"") -> 0 | N5: =IFERROR(ROUND(INDEX('Demand Curve Parameters'!$H$4:$K$49,MATCH(VALUE(MID($L5,FIND(" ",$L5)+1,10)),'Demand Curve Parameters'!$H$4:$H$49,0),MATCH(N$4,'Demand Curve Parameters'!$H$4:$K$4,0)),5),"") -> 1.5 | P5: =IF(ISNUMBER(M5),0,"") -> 0 | Q5: =IFERROR(IF(Interpolate('LOLE Data'!$H$6:$H$32,'LOLE Data'!$B$6:$B$32,$P5)="X is Too Low","> 0.2",Interpolate('LOLE Data'!$H$6:$H$32,'LOLE Data'!$B$6:$B$32,$P5)),"") -> 0 | R5: =IFERROR($N5*$B$42,"") -> 495.795 | T5: DC Price | U5: =Interpolate($P$5:$P$14,$R$5:$R$14,$V$3) -> 495.795 | X5: Current VRR Curve
H6: LOLE | I6: =IF(Interpolate('LOLE Data'!$H$6:$H$21,'LOLE Data'!$B$6:$B$21,I$9)="X is Too Low","Below 1-in-5","1-in-"&ROUND(1/Interpolate('LOLE Data'!$H$6:$H$21,'LOLE Data'!$B$6:$B$21,I$9),1)) -> Below 1-in-5 | J6: =IF(Interpolate('LOLE Data'!$H$6:$H$21,'LOLE Data'!$B$6:$B$21,J$9)="X is Too Low","Below 1-in-5","1-in-"&ROUND(1/Interpolate('LOLE Data'!$H$6:$H$21,'LOLE Data'!$B$6:$B$21,J$9),1)) -> Below 1-in-5 | L6: Point 2 | M6: =IFERROR(ROUND(INDEX('Demand Curve Parameters'!$H$4:$K$49,MATCH(VALUE(MID($L6,FIND(" ",$L6)+1,10)),'Demand Curve Parameters'!$H$4:$H$49,0),MATCH(M$4,'Demand Curve Parameters'!$H$4:$K$4,0)),5),M5) -> 0.06191 | N6: =IFERROR(ROUND(INDEX('Demand Curve Parameters'!$H$4:$K$49,MATCH(VALUE(MID($L6,FIND(" ",$L6)+1,10)),'Demand Curve Parameters'!$H$4:$H$49,0),MATCH(N$4,'Demand Curve Parameters'!$H$4:$K$4,0)),5),N5) -> 1.5 | P6: =IFERROR((M6+1)*'Auction Simulation'!$B$41,"") -> 161816.6068 | Q6: =IFERROR(IF(Interpolate('LOLE Data'!$H$6:$H$32,'LOLE Data'!$B$6:$B$32,$P6)="X is Too Low","> 0.2",Interpolate('LOLE Data'!$H$6:$H$32,'LOLE Data'!$B$6:$B$32,$P6)),"") -> 0.009417401655 | R6: =IFERROR($N6*$B$42,"") -> 495.795 | T6: Check | U6: =U5-U4 -> -204.6488 | X6: Brattle Proposed
L7: Point 3 | M7: =IFERROR(ROUND(INDEX('Demand Curve Parameters'!$H$4:$K$49,MATCH(VALUE(MID($L7,FIND(" ",$L7)+1,10)),'Demand Curve Parameters'!$H$4:$H$49,0),MATCH(M$4,'Demand Curve Parameters'!$H$4:$K$4,0)),5),M6) -> 0.09963 | N7: =IFERROR(ROUND(INDEX('Demand Curve Parameters'!$H$4:$K$49,MATCH(VALUE(MID($L7,FIND(" ",$L7)+1,10)),'Demand Curve Parameters'!$H$4:$H$49,0),MATCH(N$4,'Demand Curve Parameters'!$H$4:$K$4,0)),5),N6) -> 1 | P7: =IFERROR((M7+1)*'Auction Simulation'!$B$41,"") -> 167564.4784 | Q7: =IFERROR(IF(Interpolate('LOLE Data'!$H$6:$H$32,'LOLE Data'!$B$6:$B$32,$P7)="X is Too Low","> 0.2",Interpolate('LOLE Data'!$H$6:$H$32,'LOLE Data'!$B$6:$B$32,$P7)),"") -> X is Too High | R7: 330.53 | X7: PJM Proposed
H8: Demand Curve | I8: Current VRR Curve | J8: Current VRR Curve | L8: Point 4 | M8: =IFERROR(ROUND(INDEX('Demand Curve Parameters'!$H$4:$K$49,MATCH(VALUE(MID($L8,FIND(" ",$L8)+1,10)),'Demand Curve Parameters'!$H$4:$H$49,0),MATCH(M$4,'Demand Curve Parameters'!$H$4:$K$4,0)),5),M7) -> 0.13735 | N8: =IFERROR(ROUND(INDEX('Demand Curve Parameters'!$H$4:$K$49,MATCH(VALUE(MID($L8,FIND(" ",$L8)+1,10)),'Demand Curve Parameters'!$H$4:$H$49,0),MATCH(N$4,'Demand Curve Parameters'!$H$4:$K$4,0)),5),N7) -> 0.2 | P8: =IFERROR((M8+1)*'Auction Simulation'!$B$41,"") -> 173312.3501 | Q8: =IFERROR(IF(Interpolate('LOLE Data'!$H$6:$H$32,'LOLE Data'!$B$6:$B$32,$P8)="X is Too Low","> 0.2",Interpolate('LOLE Data'!$H$6:$H$32,'LOLE Data'!$B$6:$B$32,$P8)),"") -> X is Too High | R8: 66.106 | X8: Vertical at RR
H9: UCAP Quantity (MW) | I9: 160101.4336 | J9: 160101.4336 | L9: Point 5 | M9: =IFERROR(ROUND(INDEX('Demand Curve Parameters'!$H$4:$K$49,MATCH(VALUE(MID($L9,FIND(" ",$L9)+1,10)),'Demand Curve Parameters'!$H$4:$H$49,0),MATCH(M$4,'Demand Curve Parameters'!$H$4:$K$4,0)),5),M8) -> 0.13735 | N9: =IFERROR(ROUND(INDEX('Demand Curve Parameters'!$H$4:$K$49,MATCH(VALUE(MID($L9,FIND(" ",$L9)+1,10)),'Demand Curve Parameters'!$H$4:$H$49,0),MATCH(N$4,'Demand Curve Parameters'!$H$4:$K$4,0)),5),N8) -> 0 | P9: =IFERROR((M9+1)*'Auction Simulation'!$B$41,"") -> 173312.3501 | Q9: =IFERROR(IF(Interpolate('LOLE Data'!$H$6:$H$32,'LOLE Data'!$B$6:$B$32,$P9)="X is Too Low","> 0.2",Interpolate('LOLE Data'!$H$6:$H$32,'LOLE Data'!$B$6:$B$32,$P9)),"") -> X is Too High | R9: 0 | X9: ISO-NE
L10: Point 6 | M10: =IFERROR(ROUND(INDEX('Demand Curve Parameters'!$H$4:$K$49,MATCH(VALUE(MID($L10,FIND(" ",$L10)+1,10)),'Demand Curve Parameters'!$H$4:$H$49,0),MATCH(M$4,'Demand Curve Parameters'!$H$4:$K$4,0)),5),M9) -> 0.13735 | N10: =IFERROR(ROUND(INDEX('Demand Curve Parameters'!$H$4:$K$49,MATCH(VALUE(MID($L10,FIND(" ",$L10)+1,10)),'Demand Curve Parameters'!$H$4:$H$49,0),MATCH(N$4,'Demand Curve Parameters'!$H$4:$K$4,0)),5),N9) -> 0 | P10: =IFERROR((M10+1)*'Auction Simulation'!$B$41,"") -> 173312.3501 | Q10: =IFERROR(IF(Interpolate('LOLE Data'!$H$6:$H$32,'LOLE Data'!$B$6:$B$32,$P10)="X is Too Low","> 0.2",Interpolate('LOLE Data'!$H$6:$H$32,'LOLE Data'!$B$6:$B$32,$P10)),"") -> X is Too High | R10: 0 | X10: NYISO
L11: Point 7 | M11: =IFERROR(ROUND(INDEX('Demand Curve Parameters'!$H$4:$K$49,MATCH(VALUE(MID($L11,FIND(" ",$L11)+1,10)),'Demand Curve Parameters'!$H$4:$H$49,0),MATCH(M$4,'Demand Curve Parameters'!$H$4:$K$4,0)),5),M10) -> 0.13735 | N11: =IFERROR(ROUND(INDEX('Demand Curve Parameters'!$H$4:$K$49,MATCH(VALUE(MID($L11,FIND(" ",$L11)+1,10)),'Demand Curve Parameters'!$H$4:$H$49,0),MATCH(N$4,'Demand Curve Parameters'!$H$4:$K$4,0)),5),N10) -> 0 | P11: =IFERROR((M11+1)*'Auction Simulation'!$B$41,"") -> 173312.3501 | Q11: =IFERROR(IF(Interpolate('LOLE Data'!$H$6:$H$32,'LOLE Data'!$B$6:$B$32,$P11)="X is Too Low","> 0.2",Interpolate('LOLE Data'!$H$6:$H$32,'LOLE Data'!$B$6:$B$32,$P11)),"") -> X is Too High | R11: 0
L12: Point 8 | M12: =IFERROR(ROUND(INDEX('Demand Curve Parameters'!$H$4:$K$49,MATCH(VALUE(MID($L12,FIND(" ",$L12)+1,10)),'Demand Curve Parameters'!$H$4:$H$49,0),MATCH(M$4,'Demand Curve Parameters'!$H$4:$K$4,0)),5),M11) -> 0.13735 | N12: =IFERROR(ROUND(INDEX('Demand Curve Parameters'!$H$4:$K$49,MATCH(VALUE(MID($L12,FIND(" ",$L12)+1,10)),'Demand Curve Parameters'!$H$4:$H$49,0),MATCH(N$4,'Demand Curve Parameters'!$H$4:$K$4,0)),5),N11) -> 0 | P12: =IFERROR((M12+1)*'Auction Simulation'!$B$41,"") -> 173312.3501 | Q12: =IFERROR(IF(Interpolate('LOLE Data'!$H$6:$H$32,'LOLE Data'!$B$6:$B$32,$P12)="X is Too Low","> 0.2",Interpolate('LOLE Data'!$H$6:$H$32,'LOLE Data'!$B$6:$B$32,$P12)),"") -> X is Too High | R12: 0
L13: Point 9 | M13: =IFERROR(ROUND(INDEX('Demand Curve Parameters'!$H$4:$K$49,MATCH(VALUE(MID($L13,FIND(" ",$L13)+1,10)),'Demand Curve Parameters'!$H$4:$H$49,0),MATCH(M$4,'Demand Curve Parameters'!$H$4:$K$4,0)),5),M12) -> 0.13735 | N13: =IFERROR(ROUND(INDEX('Demand Curve Parameters'!$H$4:$K$49,MATCH(VALUE(MID($L13,FIND(" ",$L13)+1,10)),'Demand Curve Parameters'!$H$4:$H$49,0),MATCH(N$4,'Demand Curve Parameters'!$H$4:$K$4,0)),5),N12) -> 0 | P13: =IFERROR((M13+1)*'Auction Simulation'!$B$41,"") -> 173312.3501 | Q13: =IFERROR(IF(Interpolate('LOLE Data'!$H$6:$H$32,'LOLE Data'!$B$6:$B$32,$P13)="X is Too Low","> 0.2",Interpolate('LOLE Data'!$H$6:$H$32,'LOLE Data'!$B$6:$B$32,$P13)),"") -> X is Too High | R13: 0
L14: Point 10 | M14: =IFERROR(ROUND(INDEX('Demand Curve Parameters'!$H$4:$K$49,MATCH(VALUE(MID($L14,FIND(" ",$L14)+1,10)),'Demand Curve Parameters'!$H$4:$H$49,0),MATCH(M$4,'Demand Curve Parameters'!$H$4:$K$4,0)),5),M13) -> 0.13735 | N14: =IFERROR(ROUND(INDEX('Demand Curve Parameters'!$H$4:$K$49,MATCH(VALUE(MID($L14,FIND(" ",$L14)+1,10)),'Demand Curve Parameters'!$H$4:$H$49,0),MATCH(N$4,'Demand Curve Parameters'!$H$4:$K$4,0)),5),N13) -> 0 | P14: =IFERROR((M14+1)*'Auction Simulation'!$B$41,"") -> 173312.3501 | Q14: =IFERROR(IF(Interpolate('LOLE Data'!$H$6:$H$32,'LOLE Data'!$B$6:$B$32,$P14)="X is Too Low","> 0.2",Interpolate('LOLE Data'!$H$6:$H$32,'LOLE Data'!$B$6:$B$32,$P14)),"") -> X is Too High | R14: 0
L17: Supply Curve Core Shape | P17: Final Supply Curve
L18: Block | M18: Shape MW | N18: Price | P18: MW
L19: 1 | M19: 0 | N19: 0 | P19: 0
L20: 2 | M20: 1073.455033 | N20: 1.019448889 | P20: =$P$69-($M$69-$M20) -> 108473.1584
L21: 3 | M21: 2146.910067 | N21: 1.985422222 | P21: 109546.6134
L22: 4 | M22: 3220.3651 | N22: 3.1232 | P22: 110620.0685
L23: 5 | M23: 4293.820134 | N23: 4.370204444 | P23: 111693.5235
L24: 6 | M24: 5367.275167 | N24: 5.726435556 | P24: 112766.9785
L25: 7 | M25: 6440.730201 | N25: 7.285191111 | P25: 113840.4336
L26: 8 | M26: 7514.185234 | N26: 8.991857778 | P26: 114913.8886
L27: 9 | M27: 8587.640268 | N27: 10.71900444 | P27: 115987.3436
L28: 10 | M28: 9661.095301 | N28: 12.13895111 | P28: 117060.7987
L29: 11 | M29: 10734.55033 | N29: 13.73184 | P29: 118134.2537
L30: 12 | M30: 11808.00537 | N30: 15.04142222 | P30: 119207.7087
L31: 13 | M31: 12881.4604 | N31: 16.61383111 | P31: 120281.1638
L32: 14 | M32: 13954.91544 | N32: 18.48433778 | P32: 121354.6188
L33: 15 | M33: 15028.37047 | N33: 20.60856889 | P33: 122428.0738
L34: 16 | M34: 16101.8255 | N34: 22.57578667 | P34: 123501.5289
L35: 17 | M35: 17175.28054 | N35: 24.80128 | P35: 124574.9839
L36: 18 | M36: 18248.73557 | N36: 27.12007111 | P36: 125648.4389
L37: 19 | M37: 19322.1906 | N37: 29.40700444 | P37: 126721.894
L38: 20 | M38: 20395.64564 | N38: 32.36522667 | P38: 127795.349
B39: System Input Parameters (Used in Brattle Modeling) | L39: 21 | M39: 21469.10067 | N39: 35.51118222 | P39: 128868.804
B40: 166127.5 | C40: Reliability Requirement (2016/17 Planning Parameters) | L40: 22 | M40: 22542.5557 | N40: 38.48988444 | P40: 129942.2591
B41: 152382.6 | C41: Peak Load (2016/17 Planning Parameters) | L41: 23 | M41: 23616.01074 | N41: 41.33888 | P41: 131015.7141
B42: 330.53 | C42: Net CONE (2016/17 Planning Parameters) | L42: 24 | M42: 24689.46577 | N42: 44.54968889 | P42: 132089.1691
L43: 25 | M43: 25762.9208 | N43: 48.03697778 | P43: 133162.6242
L44: 26 | M44: 26836.37584 | N44: 52.40604444 | P44: 134236.0792
L45: 27 | M45: 27909.83087 | N45: 56.89344 | P45: 135309.5342
B46: Chart Lines | C46: Quantity (MW) | D46: Price ($/MW-d) | L46: 28 | M46: 28983.2859 | N46: 61.59018667 | P46: 136382.9893
B47: RR | C47: =$B$40 -> 166127.5 | D47: 0 | L47: 29 | M47: 30056.74094 | N47: 66.01841778 | P47: 137456.4443
C48: =$B$40 -> 166127.5 | D48: 10000 | L48: 30 | M48: 31130.19597 | N48: 71.06446222 | P48: 138529.8993
L49: 31 | M49: 32203.651 | N49: 76.98090667 | P49: 139603.3544
B50: Net CONE | C50: 0 | D50: =$B$42 -> 330.53 | L50: 32 | M50: 33277.10604 | N50: 83.47989333 | P50: 140676.8094
C51: =$B$40 -> 166127.5 | D51: =$B$42 -> 330.53 | L51: 33 | M51: 34350.56107 | N51: 89.98684444 | P51: 141750.2644
L52: 34 | M52: 35424.01611 | N52: 96.62691556 | P52: 142823.7195
L53: 35 | M53: 36497.47114 | N53: 102.4341333 | P53: 143897.1745
L54: 36 | M54: 37570.92617 | N54: 108.6532267 | P54: 144970.6295
L55: 37 | M55: 38644.38121 | N55: 115.15904 | P55: 146044.0846
L56: 38 | M56: 39717.83624 | N56: 122.3361422 | P56: 147117.5396
L57: 39 | M57: 40791.29127 | N57: 129.7316978 | P57: 148190.9946
L58: 40 | M58: 41864.74631 | N58: 138.0374756 | P58: 149264.4497
L59: 41 | M59: 42938.20134 | N59: 148.3275378 | P59: 150337.9047
L60: 42 | M60: 44011.65637 | N60: 160.0466489 | P60: 151411.3597
L61: 43 | M61: 45085.11141 | N61: 174.83776 | P61: 152484.8148
L62: 44 | M62: 46158.56644 | N62: 191.2376889 | P62: 153558.2698
L63: 45 | M63: 47232.02147 | N63: 207.5739022 | P63: 154631.7248
L64: 46 | M64: 48305.47651 | N64: 226.0605156 | P64: 155705.1799
L65: 47 | M65: 49378.93154 | N65: 291.5555556 | P65: 156778.6349
L66: 48 | M66: 50452.38657 | N66: 355.9128178 | P66: 157852.0899
L67: 49 | M67: 51525.84161 | N67: 418.22208 | P67: 158925.545
L68: 50 | M68: 52599.29664 | N68: 477.6868978 | P68: =$P$69-($M$69-$M68) -> 159999
L69: 51 | M69: =M68+1 -> 52600.29664 | N69: 700 | P69: =supply_shift -> 160000

Sheet Data --> (hidden)

Sheet Demand Curve Parameters
D1: Peak Load (MW): | H1: =COUNTIFS($A:$A,'Auction Simulation'!$B$4) -> 5 | I1: # of DC Points
D3: User-Defined Curve | I3: Current Curve
C4: Point | D4: Quantity (UCAP RM %) | E4: Quantity (% of RR) | F4: Price (% of Net Cone) | H4: Point | I4: Quantity (UCAP RM %) | J4: Quantity (% of RR) | K4: Price (% of Net Cone)
A5: =IF(ISNUMBER(B5),D3,"") -> User-Defined Curve | B5: =IF(ISNUMBER(E5),C5,"") -> 1 | C5: 1 | D5: =IF(E5=0,0,(E5*'Auction Simulation'!$B$40)/'Auction Simulation'!$B$41-1) -> 0 | E5: 0 | H5: 1 | I5: =IF(ISNUMBER(H5),INDEX($A$3:$F$9996,MATCH('Auction Simulation'!$B$4&$H5,$A$3:$A$9996&$B$3:$B$9996,0),MATCH(I$4,$A$4:$F$4,0)),"") -> 0 | J5: =IF(ISNUMBER(I5),INDEX($A$3:$F$9996,MATCH('Auction Simulation'!$B$4&$H5,$A$3:$A$9996&$B$3:$B$9996,0),MATCH(J$4,$A$4:$F$4,0)),"") -> 0 | K5: =IF(ISNUMBER(J5),INDEX($A$3:$F$9996,MATCH('Auction Simulation'!$B$4&$H5,$A$3:$A$9996&$B$3:$B$9996,0),MATCH(K$4,$A$4:$F$4,0)),"") -> 1.5
A6: =IF(ISNUMBER(B6),A5,"") ->  | B6: =IF(ISNUMBER(E6),C6,"") ->  | C6: 2 | D6: =IF(E6=0,0,(E6*'Auction Simulation'!$B$40)/'Auction Simulation'!$B$41-1) -> 0 | H6: =IF(H5>=$H$1,"",H5+1) -> 2 | I6: =IF(ISNUMBER(H6),INDEX($A$3:$F$9996,MATCH('Auction Simulation'!$B$4&$H6,$A$3:$A$9996&$B$3:$B$9996,0),MATCH(I$4,$A$4:$F$4,0)),"") -> 0.06190754521 | J6: =IF(ISNUMBER(I6),INDEX($A$3:$F$9996,MATCH('Auction Simulation'!$B$4&$H6,$A$3:$A$9996&$B$3:$B$9996,0),MATCH(J$4,$A$4:$F$4,0)),"") -> 0.9740484429 | K6: =IF(ISNUMBER(J6),INDEX($A$3:$F$9996,MATCH('Auction Simulation'!$B$4&$H6,$A$3:$A$9996&$B$3:$B$9996,0),MATCH(K$4,$A$4:$F$4,0)),"") -> 1.5
A7: =IF(ISNUMBER(B7),A6,"") ->  | C7: 3 | D7: =IF(E7=0,0,(E7*'Auction Simulation'!$B$40)/'Auction Simulation'!$B$41-1) -> 0 | H7: 3 | I7: =IF(ISNUMBER(H7),INDEX($A$3:$F$9996,MATCH('Auction Simulation'!$B$4&$H7,$A$3:$A$9996&$B$3:$B$9996,0),MATCH(I$4,$A$4:$F$4,0)),"") -> 0.09963072621 | J7: =IF(ISNUMBER(I7),INDEX($A$3:$F$9996,MATCH('Auction Simulation'!$B$4&$H7,$A$3:$A$9996&$B$3:$B$9996,0),MATCH(J$4,$A$4:$F$4,0)),"") -> 1.008650519 | K7: =IF(ISNUMBER(J7),INDEX($A$3:$F$9996,MATCH('Auction Simulation'!$B$4&$H7,$A$3:$A$9996&$B$3:$B$9996,0),MATCH(K$4,$A$4:$F$4,0)),"") -> 1
C8: 4 | D8: =IF(E8=0,0,(E8*'Auction Simulation'!$B$40)/'Auction Simulation'!$B$41-1) -> 0 | H8: 4 | I8: =IF(ISNUMBER(H8),INDEX($A$3:$F$9996,MATCH('Auction Simulation'!$B$4&$H8,$A$3:$A$9996&$B$3:$B$9996,0),MATCH(I$4,$A$4:$F$4,0)),"") -> 0.1373539072 | J8: =IF(ISNUMBER(I8),INDEX($A$3:$F$9996,MATCH('Auction Simulation'!$B$4&$H8,$A$3:$A$9996&$B$3:$B$9996,0),MATCH(J$4,$A$4:$F$4,0)),"") -> 1.043252595 | K8: =IF(ISNUMBER(J8),INDEX($A$3:$F$9996,MATCH('Auction Simulation'!$B$4&$H8,$A$3:$A$9996&$B$3:$B$9996,0),MATCH(K$4,$A$4:$F$4,0)),"") -> 0.2
C9: 5 | D9: =IF(E9=0,0,(E9*'Auction Simulation'!$B$40)/'Auction Simulation'!$B$41-1) -> 0 | H9: 5 | I9: =IF(ISNUMBER(H9),INDEX($A$3:$F$9996,MATCH('Auction Simulation'!$B$4&$H9,$A$3:$A$9996&$B$3:$B$9996,0),MATCH(I$4,$A$4:$F$4,0)),"") -> 0.1373539072 | J9: =IF(ISNUMBER(I9),INDEX($A$3:$F$9996,MATCH('Auction Simulation'!$B$4&$H9,$A$3:$A$9996&$B$3:$B$9996,0),MATCH(J$4,$A$4:$F$4,0)),"") -> 1.043252595 | K9: =IF(ISNUMBER(J9),INDEX($A$3:$F$9996,MATCH('Auction Simulation'!$B$4&$H9,$A$3:$A$9996&$B$3:$B$9996,0),MATCH(K$4,$A$4:$F$4,0)),"") -> 0
C10: 6 | D10: =IF(E10=0,0,(E10*'Auction Simulation'!$B$40)/'Auction Simulation'!$B$41-1) -> 0 | I10: =IF(ISNUMBER(H10),INDEX($A$3:$F$9996,MATCH('Auction Simulation'!$B$4&$H10,$A$3:$A$9996&$B$3:$B$9996,0),MATCH(I$4,$A$4:$F$4,0)),"") ->  | J10: =IF(ISNUMBER(I10),INDEX($A$3:$F$9996,MATCH('Auction Simulation'!$B$4&$H10,$A$3:$A$9996&$B$3:$B$9996,0),MATCH(J$4,$A$4:$F$4,0)),"") ->  | K10: =IF(ISNUMBER(J10),INDEX($A$3:$F$9996,MATCH('Auction Simulation'!$B$4&$H10,$A$3:$A$9996&$B$3:$B$9996,0),MATCH(K$4,$A$4:$F$4,0)),"") -> 
C11: 7 | D11: =IF(E11=0,0,(E11*'Auction Simulation'!$B$40)/'Auction Simulation'!$B$41-1) -> 0 | I11: =IF(ISNUMBER(H11),INDEX($A$3:$F$9996,MATCH('Auction Simulation'!$B$4&$H11,$A$3:$A$9996&$B$3:$B$9996,0),MATCH(I$4,$A$4:$F$4,0)),"") ->  | J11: =IF(ISNUMBER(I11),INDEX($A$3:$F$9996,MATCH('Auction Simulation'!$B$4&$H11,$A$3:$A$9996&$B$3:$B$9996,0),MATCH(J$4,$A$4:$F$4,0)),"") ->  | K11: =IF(ISNUMBER(J11),INDEX($A$3:$F$9996,MATCH('Auction Simulation'!$B$4&$H11,$A$3:$A$9996&$B$3:$B$9996,0),MATCH(K$4,$A$4:$F$4,0)),"") -> 
C12: 8 | D12: =IF(E12=0,0,(E12*'Auction Simulation'!$B$40)/'Auction Simulation'!$B$41-1) -> 0 | I12: =IF(ISNUMBER(H12),INDEX($A$3:$F$9996,MATCH('Auction Simulation'!$B$4&$H12,$A$3:$A$9996&$B$3:$B$9996,0),MATCH(I$4,$A$4:$F$4,0)),"") ->  | J12: =IF(ISNUMBER(I12),INDEX($A$3:$F$9996,MATCH('Auction Simulation'!$B$4&$H12,$A$3:$A$9996&$B$3:$B$9996,0),MATCH(J$4,$A$4:$F$4,0)),"") ->  | K12: =IF(ISNUMBER(J12),INDEX($A$3:$F$9996,MATCH('Auction Simulation'!$B$4&$H12,$A$3:$A$9996&$B$3:$B$9996,0),MATCH(K$4,$A$4:$F$4,0)),"") -> 
C13: 9 | D13: =IF(E13=0,0,(E13*'Auction Simulation'!$B$40)/'Auction Simulation'!$B$41-1) -> 0 | H13: =IF(H12>=$H$1,"",H12+1) ->  | I13: =IF(ISNUMBER(H13),INDEX($A$3:$F$9996,MATCH('Auction Simulation'!$B$4&$H13,$A$3:$A$9996&$B$3:$B$9996,0),MATCH(I$4,$A$4:$F$4,0)),"") ->  | J13: =IF(ISNUMBER(I13),INDEX($A$3:$F$9996,MATCH('Auction Simulation'!$B$4&$H13,$A$3:$A$9996&$B$3:$B$9996,0),MATCH(J$4,$A$4:$F$4,0)),"") ->  | K13: =IF(ISNUMBER(J13),INDEX($A$3:$F$9996,MATCH('Auction Simulation'!$B$4&$H13,$A$3:$A$9996&$B$3:$B$9996,0),MATCH(K$4,$A$4:$F$4,0)),"") -> 
C14: 10 | D14: =IF(E14=0,0,(E14*'Auction Simulation'!$B$40)/'Auction Simulation'!$B$41-1) -> 0 | I14: =IF(ISNUMBER(H14),INDEX($A$3:$F$9996,MATCH('Auction Simulation'!$B$4&$H14,$A$3:$A$9996&$B$3:$B$9996,0),MATCH(I$4,$A$4:$F$4,0)),"") ->  | J14: =IF(ISNUMBER(I14),INDEX($A$3:$F$9996,MATCH('Auction Simulation'!$B$4&$H14,$A$3:$A$9996&$B$3:$B$9996,0),MATCH(J$4,$A$4:$F$4,0)),"") ->  | K14: =IF(ISNUMBER(J14),INDEX($A$3:$F$9996,MATCH('Auction Simulation'!$B$4&$H14,$A$3:$A$9996&$B$3:$B$9996,0),MATCH(K$4,$A$4:$F$4,0)),"") -> 
I15: =IF(ISNUMBER(H15),INDEX($A$3:$F$9996,MATCH('Auction Simulation'!$B$4&$H15,$A$3:$A$9996&$B$3:$B$9996,0),MATCH(I$4,$A$4:$F$4,0)),"") ->  | J15: =IF(ISNUMBER(I15),INDEX($A$3:$F$9996,MATCH('Auction Simulation'!$B$4&$H15,$A$3:$A$9996&$B$3:$B$9996,0),MATCH(J$4,$A$4:$F$4,0)),"") ->  | K15: =IF(ISNUMBER(J15),INDEX($A$3:$F$9996,MATCH('Auction Simulation'!$B$4&$H15,$A$3:$A$9996&$B$3:$B$9996,0),MATCH(K$4,$A$4:$F$4,0)),"") -> 
I16: =IF(ISNUMBER(H16),INDEX($A$3:$F$9996,MATCH('Auction Simulation'!$B$4&$H16,$A$3:$A$9996&$B$3:$B$9996,0),MATCH(I$4,$A$4:$F$4,0)),"") ->  | J16: =IF(ISNUMBER(I16),INDEX($A$3:$F$9996,MATCH('Auction Simulation'!$B$4&$H16,$A$3:$A$9996&$B$3:$B$9996,0),MATCH(J$4,$A$4:$F$4,0)),"") ->  | K16: =IF(ISNUMBER(J16),INDEX($A$3:$F$9996,MATCH('Auction Simulation'!$B$4&$H16,$A$3:$A$9996&$B$3:$B$9996,0),MATCH(K$4,$A$4:$F$4,0)),"") -> 
D17: Current VRR Curve | I17: =IF(ISNUMBER(H17),INDEX($A$3:$F$9996,MATCH('Auction Simulation'!$B$4&$H17,$A$3:$A$9996&$B$3:$B$9996,0),MATCH(I$4,$A$4:$F$4,0)),"") ->  | J17: =IF(ISNUMBER(I17),INDEX($A$3:$F$9996,MATCH('Auction Simulation'!$B$4&$H17,$A$3:$A$9996&$B$3:$B$9996,0),MATCH(J$4,$A$4:$F$4,0)),"") ->  | K17: =IF(ISNUMBER(J17),INDEX($A$3:$F$9996,MATCH('Auction Simulation'!$B$4&$H17,$A$3:$A$9996&$B$3:$B$9996,0),MATCH(K$4,$A$4:$F$4,0)),"") -> 
D18: Quantity (UCAP RM %) | E18: Quantity (% of RR) | F18: Price (% of Net Cone) | I18: =IF(ISNUMBER(H18),INDEX($A$3:$F$9996,MATCH('Auction Simulation'!$B$4&$H18,$A$3:$A$9996&$B$3:$B$9996,0),MATCH(I$4,$A$4:$F$4,0)),"") ->  | J18: =IF(ISNUMBER(I18),INDEX($A$3:$F$9996,MATCH('Auction Simulation'!$B$4&$H18,$A$3:$A$9996&$B$3:$B$9996,0),MATCH(J$4,$A$4:$F$4,0)),"") ->  | K18: =IF(ISNUMBER(J18),INDEX($A$3:$F$9996,MATCH('Auction Simulation'!$B$4&$H18,$A$3:$A$9996&$B$3:$B$9996,0),MATCH(K$4,$A$4:$F$4,0)),"") -> 
A19: Current VRR Curve | B19: 1 | C19: 1 | D19: =IF(E19=0,0,(E19*'Auction Simulation'!$B$40)/'Auction Simulation'!$B$41-1) -> 0 | E19: 0 | F19: 1.5 | I19: =IF(ISNUMBER(H19),INDEX($A$3:$F$9996,MATCH('Auction Simulation'!$B$4&$H19,$A$3:$A$9996&$B$3:$B$9996,0),MATCH(I$4,$A$4:$F$4,0)),"") ->  | J19: =IF(ISNUMBER(I19),INDEX($A$3:$F$9996,MATCH('Auction Simulation'!$B$4&$H19,$A$3:$A$9996&$B$3:$B$9996,0),MATCH(J$4,$A$4:$F$4,0)),"") ->  | K19: =IF(ISNUMBER(J19),INDEX($A$3:$F$9996,MATCH('Auction Simulation'!$B$4&$H19,$A$3:$A$9996&$B$3:$B$9996,0),MATCH(K$4,$A$4:$F$4,0)),"") -> 
A20: =IF(ISNUMBER(B20),A19,"") -> Current VRR Curve | B20: 2 | C20: 2 | D20: =IF(E20=0,0,(E20*'Auction Simulation'!$B$40)/'Auction Simulation'!$B$41-1) -> 0.06190754521 | E20: 0.9740484429 | F20: 1.5 | I20: =IF(ISNUMBER(H20),INDEX($A$3:$F$9996,MATCH('Auction Simulation'!$B$4&$H20,$A$3:$A$9996&$B$3:$B$9996,0),MATCH(I$4,$A$4:$F$4,0)),"") ->  | J20: =IF(ISNUMBER(I20),INDEX($A$3:$F$9996,MATCH('Auction Simulation'!$B$4&$H20,$A$3:$A$9996&$B$3:$B$9996,0),MATCH(J$4,$A$4:$F$4,0)),"") ->  | K20: =IF(ISNUMBER(J20),INDEX($A$3:$F$9996,MATCH('Auction Simulation'!$B$4&$H20,$A$3:$A$9996&$B$3:$B$9996,0),MATCH(K$4,$A$4:$F$4,0)),"") -> 
A21: =IF(ISNUMBER(B21),A20,"") -> Current VRR Curve | B21: 3 | C21: 3 | D21: =IF(E21=0,0,(E21*'Auction Simulation'!$B$40)/'Auction Simulation'!$B$41-1) -> 0.09963072621 | E21: 1.008650519 | F21: 1 | I21: =IF(ISNUMBER(H21),INDEX($A$3:$F$9996,MATCH('Auction Simulation'!$B$4&$H21,$A$3:$A$9996&$B$3:$B$9996,0),MATCH(I$4,$A$4:$F$4,0)),"") ->  | J21: =IF(ISNUMBER(I21),INDEX($A$3:$F$9996,MATCH('Auction Simulation'!$B$4&$H21,$A$3:$A$9996&$B$3:$B$9996,0),MATCH(J$4,$A$4:$F$4,0)),"") ->  | K21: =IF(ISNUMBER(J21),INDEX($A$3:$F$9996,MATCH('Auction Simulation'!$B$4&$H21,$A$3:$A$9996&$B$3:$B$9996,0),MATCH(K$4,$A$4:$F$4,0)),"") -> 
A22: =IF(ISNUMBER(B22),A21,"") -> Current VRR Curve | B22: 4 | C22: 4 | D22: =IF(E22=0,0,(E22*'Auction Simulation'!$B$40)/'Auction Simulation'!$B$41-1) -> 0.1373539072 | E22: 1.043252595 | F22: 0.2 | I22: =IF(ISNUMBER(H22),INDEX($A$3:$F$9996,MATCH('Auction Simulation'!$B$4&$H22,$A$3:$A$9996&$B$3:$B$9996,0),MATCH(I$4,$A$4:$F$4,0)),"") ->  | J22: =IF(ISNUMBER(I22),INDEX($A$3:$F$9996,MATCH('Auction Simulation'!$B$4&$H22,$A$3:$A$9996&$B$3:$B$9996,0),MATCH(J$4,$A$4:$F$4,0)),"") ->  | K22: =IF(ISNUMBER(J22),INDEX($A$3:$F$9996,MATCH('Auction Simulation'!$B$4&$H22,$A$3:$A$9996&$B$3:$B$9996,0),MATCH(K$4,$A$4:$F$4,0)),"") -> 
A23: =IF(ISNUMBER(B23),A22,"") -> Current VRR Curve | B23: 5 | C23: 5 | D23: =IF(E23=0,0,(E23*'Auction Simulation'!$B$40)/'Auction Simulation'!$B$41-1) -> 0.1373539072 | E23: 1.043252595 | F23: 0
H24: =IF(H22>=$H$1,"",H22+1) ->  | I24: =IF(ISNUMBER(H24),INDEX($A$3:$F$9996,MATCH('Auction Simulation'!$B$4&$H24,$A$3:$A$9996&$B$3:$B$9996,0),MATCH(I$4,$A$4:$F$4,0)),"") ->  | J24: =IF(ISNUMBER(I24),INDEX($A$3:$F$9996,MATCH('Auction Simulation'!$B$4&$H24,$A$3:$A$9996&$B$3:$B$9996,0),MATCH(J$4,$A$4:$F$4,0)),"") ->  | K24: =IF(ISNUMBER(J24),INDEX($A$3:$F$9996,MATCH('Auction Simulation'!$B$4&$H24,$A$3:$A$9996&$B$3:$B$9996,0),MATCH(K$4,$A$4:$F$4,0)),"") -> 
D25: Brattle Proposed | I25: =IF(ISNUMBER(H25),INDEX($A$3:$F$9996,MATCH('Auction Simulation'!$B$4&$H25,$A$3:$A$9996&$B$3:$B$9996,0),MATCH(I$4,$A$4:$F$4,0)),"") ->  | J25: =IF(ISNUMBER(I25),INDEX($A$3:$F$9996,MATCH('Auction Simulation'!$B$4&$H25,$A$3:$A$9996&$B$3:$B$9996,0),MATCH(J$4,$A$4:$F$4,0)),"") ->  | K25: =IF(ISNUMBER(J25),INDEX($A$3:$F$9996,MATCH('Auction Simulation'!$B$4&$H25,$A$3:$A$9996&$B$3:$B$9996,0),MATCH(K$4,$A$4:$F$4,0)),"") -> 
D26: Quantity (UCAP RM %) | E26: Quantity (% of RR) | F26: Price (% of Net Cone) | I26: =IF(ISNUMBER(H26),INDEX($A$3:$F$9996,MATCH('Auction Simulation'!$B$4&$H26,$A$3:$A$9996&$B$3:$B$9996,0),MATCH(I$4,$A$4:$F$4,0)),"") ->  | J26: =IF(ISNUMBER(I26),INDEX($A$3:$F$9996,MATCH('Auction Simulation'!$B$4&$H26,$A$3:$A$9996&$B$3:$B$9996,0),MATCH(J$4,$A$4:$F$4,0)),"") ->  | K26: =IF(ISNUMBER(J26),INDEX($A$3:$F$9996,MATCH('Auction Simulation'!$B$4&$H26,$A$3:$A$9996&$B$3:$B$9996,0),MATCH(K$4,$A$4:$F$4,0)),"") -> 
A27: Brattle Proposed | B27: 1 | C27: 1 | D27: =IF(E27=0,0,(E27*'Auction Simulation'!$B$40)/'Auction Simulation'!$B$41-1) -> 0 | E27: 0 | F27: 1.5 | I27: =IF(ISNUMBER(H27),INDEX($A$3:$F$9996,MATCH('Auction Simulation'!$B$4&$H27,$A$3:$A$9996&$B$3:$B$9996,0),MATCH(I$4,$A$4:$F$4,0)),"") ->  | J27: =IF(ISNUMBER(I27),INDEX($A$3:$F$9996,MATCH('Auction Simulation'!$B$4&$H27,$A$3:$A$9996&$B$3:$B$9996,0),MATCH(J$4,$A$4:$F$4,0)),"") ->  | K27: =IF(ISNUMBER(J27),INDEX($A$3:$F$9996,MATCH('Auction Simulation'!$B$4&$H27,$A$3:$A$9996&$B$3:$B$9996,0),MATCH(K$4,$A$4:$F$4,0)),"") -> 
A28: =IF(ISNUMBER(B28),A27,"") -> Brattle Proposed | B28: 2 | C28: 2 | D28: =IF(E28=0,0,(E28*'Auction Simulation'!$B$40)/'Auction Simulation'!$B$41-1) -> 0.07887541871 | E28: 0.9896124445 | F28: 1.5 | I28: =IF(ISNUMBER(H28),INDEX($A$3:$F$9996,MATCH('Auction Simulation'!$B$4&$H28,$A$3:$A$9996&$B$3:$B$9996,0),MATCH(I$4,$A$4:$F$4,0)),"") ->  | J28: =IF(ISNUMBER(I28),INDEX($A$3:$F$9996,MATCH('Auction Simulation'!$B$4&$H28,$A$3:$A$9996&$B$3:$B$9996,0),MATCH(J$4,$A$4:$F$4,0)),"") ->  | K28: =IF(ISNUMBER(J28),INDEX($A$3:$F$9996,MATCH('Auction Simulation'!$B$4&$H28,$A$3:$A$9996&$B$3:$B$9996,0),MATCH(K$4,$A$4:$F$4,0)),"") -> 
A29: =IF(ISNUMBER(B29),A28,"") -> Brattle Proposed | B29: 3 | C29: 3 | D29: =IF(E29=0,0,(E29*'Auction Simulation'!$B$40)/'Auction Simulation'!$B$41-1) -> 0.1084727642 | E29: 1.016760993 | F29: 0.75 | I29: =IF(ISNUMBER(H29),INDEX($A$3:$F$9996,MATCH('Auction Simulation'!$B$4&$H29,$A$3:$A$9996&$B$3:$B$9996,0),MATCH(I$4,$A$4:$F$4,0)),"") ->  | J29: =IF(ISNUMBER(I29),INDEX($A$3:$F$9996,MATCH('Auction Simulation'!$B$4&$H29,$A$3:$A$9996&$B$3:$B$9996,0),MATCH(J$4,$A$4:$F$4,0)),"") ->  | K29: =IF(ISNUMBER(J29),INDEX($A$3:$F$9996,MATCH('Auction Simulation'!$B$4&$H29,$A$3:$A$9996&$B$3:$B$9996,0),MATCH(K$4,$A$4:$F$4,0)),"") -> 
A30: =IF(ISNUMBER(B30),A29,"") -> Brattle Proposed | B30: 4 | C30: 4 | D30: =IF(E30=0,0,(E30*'Auction Simulation'!$B$40)/'Auction Simulation'!$B$41-1) -> 0.1639108755 | E30: 1.067612318 | F30: 0 | I30: =IF(ISNUMBER(H30),INDEX($A$3:$F$9996,MATCH('Auction Simulation'!$B$4&$H30,$A$3:$A$9996&$B$3:$B$9996,0),MATCH(I$4,$A$4:$F$4,0)),"") ->  | J30: =IF(ISNUMBER(I30),INDEX($A$3:$F$9996,MATCH('Auction Simulation'!$B$4&$H30,$A$3:$A$9996&$B$3:$B$9996,0),MATCH(J$4,$A$4:$F$4,0)),"") ->  | K30: =IF(ISNUMBER(J30),INDEX($A$3:$F$9996,MATCH('Auction Simulation'!$B$4&$H30,$A$3:$A$9996&$B$3:$B$9996,0),MATCH(K$4,$A$4:$F$4,0)),"") -> 
I31: =IF(ISNUMBER(H31),INDEX($A$3:$F$9996,MATCH('Auction Simulation'!$B$4&$H31,$A$3:$A$9996&$B$3:$B$9996,0),MATCH(I$4,$A$4:$F$4,0)),"") ->  | J31: =IF(ISNUMBER(I31),INDEX($A$3:$F$9996,MATCH('Auction Simulation'!$B$4&$H31,$A$3:$A$9996&$B$3:$B$9996,0),MATCH(J$4,$A$4:$F$4,0)),"") ->  | K31: =IF(ISNUMBER(J31),INDEX($A$3:$F$9996,MATCH('Auction Simulation'!$B$4&$H31,$A$3:$A$9996&$B$3:$B$9996,0),MATCH(K$4,$A$4:$F$4,0)),"") -> 
D32: PJM Proposed | I32: =IF(ISNUMBER(H32),INDEX($A$3:$F$9996,MATCH('Auction Simulation'!$B$4&$H32,$A$3:$A$9996&$B$3:$B$9996,0),MATCH(I$4,$A$4:$F$4,0)),"") ->  | J32: =IF(ISNUMBER(I32),INDEX($A$3:$F$9996,MATCH('Auction Simulation'!$B$4&$H32,$A$3:$A$9996&$B$3:$B$9996,0),MATCH(J$4,$A$4:$F$4,0)),"") ->  | K32: =IF(ISNUMBER(J32),INDEX($A$3:$F$9996,MATCH('Auction Simulation'!$B$4&$H32,$A$3:$A$9996&$B$3:$B$9996,0),MATCH(K$4,$A$4:$F$4,0)),"") -> 
D33: Quantity (UCAP RM %) | E33: Quantity (% of RR) | F33: Price (% of Net Cone) | I33: =IF(ISNUMBER(H33),INDEX($A$3:$F$9996,MATCH('Auction Simulation'!$B$4&$H33,$A$3:$A$9996&$B$3:$B$9996,0),MATCH(I$4,$A$4:$F$4,0)),"") ->  | J33: =IF(ISNUMBER(I33),INDEX($A$3:$F$9996,MATCH('Auction Simulation'!$B$4&$H33,$A$3:$A$9996&$B$3:$B$9996,0),MATCH(J$4,$A$4:$F$4,0)),"") ->  | K33: =IF(ISNUMBER(J33),INDEX($A$3:$F$9996,MATCH('Auction Simulation'!$B$4&$H33,$A$3:$A$9996&$B$3:$B$9996,0),MATCH(K$4,$A$4:$F$4,0)),"") -> 
A34: PJM Proposed | B34: 1 | C34: 1 | D34: =IF(E34=0,0,(E34*'Auction Simulation'!$B$40)/'Auction Simulation'!$B$41-1) -> 0 | E34: 0 | F34: 1.5 | I34: =IF(ISNUMBER(H34),INDEX($A$3:$F$9996,MATCH('Auction Simulation'!$B$4&$H34,$A$3:$A$9996&$B$3:$B$9996,0),MATCH(I$4,$A$4:$F$4,0)),"") ->  | J34: =IF(ISNUMBER(I34),INDEX($A$3:$F$9996,MATCH('Auction Simulation'!$B$4&$H34,$A$3:$A$9996&$B$3:$B$9996,0),MATCH(J$4,$A$4:$F$4,0)),"") ->  | K34: =IF(ISNUMBER(J34),INDEX($A$3:$F$9996,MATCH('Auction Simulation'!$B$4&$H34,$A$3:$A$9996&$B$3:$B$9996,0),MATCH(K$4,$A$4:$F$4,0)),"") -> 
A35: =IF(ISNUMBER(B35),A34,"") -> PJM Proposed | B35: 2 | C35: 2 | D35: =IF(E35=0,0,(E35*'Auction Simulation'!$B$40)/'Auction Simulation'!$B$41-1) -> 0.08828279129 | E35: 0.9982414788 | F35: 1.5 | I35: =IF(ISNUMBER(H35),INDEX($A$3:$F$9996,MATCH('Auction Simulation'!$B$4&$H35,$A$3:$A$9996&$B$3:$B$9996,0),MATCH(I$4,$A$4:$F$4,0)),"") ->  | J35: =IF(ISNUMBER(I35),INDEX($A$3:$F$9996,MATCH('Auction Simulation'!$B$4&$H35,$A$3:$A$9996&$B$3:$B$9996,0),MATCH(J$4,$A$4:$F$4,0)),"") ->  | K35: =IF(ISNUMBER(J35),INDEX($A$3:$F$9996,MATCH('Auction Simulation'!$B$4&$H35,$A$3:$A$9996&$B$3:$B$9996,0),MATCH(K$4,$A$4:$F$4,0)),"") -> 
A36: =IF(ISNUMBER(B36),A35,"") -> PJM Proposed | B36: 3 | C36: 3 | D36: =IF(E36=0,0,(E36*'Auction Simulation'!$B$40)/'Auction Simulation'!$B$41-1) -> 0.1178794942 | E36: 1.025389438 | F36: 0.75 | I36: =IF(ISNUMBER(H36),INDEX($A$3:$F$9996,MATCH('Auction Simulation'!$B$4&$H36,$A$3:$A$9996&$B$3:$B$9996,0),MATCH(I$4,$A$4:$F$4,0)),"") ->  | J36: =IF(ISNUMBER(I36),INDEX($A$3:$F$9996,MATCH('Auction Simulation'!$B$4&$H36,$A$3:$A$9996&$B$3:$B$9996,0),MATCH(J$4,$A$4:$F$4,0)),"") ->  | K36: =IF(ISNUMBER(J36),INDEX($A$3:$F$9996,MATCH('Auction Simulation'!$B$4&$H36,$A$3:$A$9996&$B$3:$B$9996,0),MATCH(K$4,$A$4:$F$4,0)),"") -> 
A37: =IF(ISNUMBER(B37),A36,"") -> PJM Proposed | B37: 4 | C37: 4 | D37: =IF(E37=0,0,(E37*'Auction Simulation'!$B$40)/'Auction Simulation'!$B$41-1) -> 0.1733164019 | E37: 1.076239659 | F37: 0 | I37: =IF(ISNUMBER(H37),INDEX($A$3:$F$9996,MATCH('Auction Simulation'!$B$4&$H37,$A$3:$A$9996&$B$3:$B$9996,0),MATCH(I$4,$A$4:$F$4,0)),"") ->  | J37: =IF(ISNUMBER(I37),INDEX($A$3:$F$9996,MATCH('Auction Simulation'!$B$4&$H37,$A$3:$A$9996&$B$3:$B$9996,0),MATCH(J$4,$A$4:$F$4,0)),"") ->  | K37: =IF(ISNUMBER(J37),INDEX($A$3:$F$9996,MATCH('Auction Simulation'!$B$4&$H37,$A$3:$A$9996&$B$3:$B$9996,0),MATCH(K$4,$A$4:$F$4,0)),"") -> 
I38: =IF(ISNUMBER(H38),INDEX($A$3:$F$9996,MATCH('Auction Simulation'!$B$4&$H38,$A$3:$A$9996&$B$3:$B$9996,0),MATCH(I$4,$A$4:$F$4,0)),"") ->  | J38: =IF(ISNUMBER(I38),INDEX($A$3:$F$9996,MATCH('Auction Simulation'!$B$4&$H38,$A$3:$A$9996&$B$3:$B$9996,0),MATCH(J$4,$A$4:$F$4,0)),"") ->  | K38: =IF(ISNUMBER(J38),INDEX($A$3:$F$9996,MATCH('Auction Simulation'!$B$4&$H38,$A$3:$A$9996&$B$3:$B$9996,0),MATCH(K$4,$A$4:$F$4,0)),"") -> 
D39: Vertical at RR
D40: Quantity (UCAP RM %) | E40: Quantity (% of RR) | F40: Price (% of Net Cone)
A41: =IF(ISNUMBER(B41),D39,"") -> Vertical at RR | B41: 1 | C41: 1 | D41: =IF(E41=0,0,(E41*'Auction Simulation'!$B$40)/'Auction Simulation'!$B$41-1) -> 0 | E41: 0 | F41: 1.5
A42: =IF(ISNUMBER(B42),A41,"") -> Vertical at RR | B42: 2 | C42: 2 | D42: =IF(E42=0,0,(E42*'Auction Simulation'!$B$40)/'Auction Simulation'!$B$41-1) -> 0.09019993096 | E42: 1 | F42: 1.5
A43: =IF(ISNUMBER(B43),A42,"") -> Vertical at RR | B43: 3 | C43: 3 | D43: =IF(E43=0,0,(E43*'Auction Simulation'!$B$40)/'Auction Simulation'!$B$41-1) -> 0.09019993096 | E43: 1 | F43: 0
D45: ISO-NE
D46: Quantity (UCAP RM %) | E46: Quantity (% of RR) | F46: Price (% of Net Cone)
A47: =IF(ISNUMBER(B47),D45,"") -> ISO-NE | B47: 1 | C47: 1 | D47: =IF(E47=0,0,(E47*'Auction Simulation'!$B$40)/'Auction Simulation'!$B$41-1) -> 0 | E47: 0 | F47: 1.6
A48: =IF(ISNUMBER(B48),A47,"") -> ISO-NE | B48: 2 | C48: 2 | D48: =IF(E48=0,0,(E48*'Auction Simulation'!$B$40)/'Auction Simulation'!$B$41-1) -> 0.07887541871 | E48: 0.9896124445 | F48: 1.6
A49: =IF(ISNUMBER(B49),A48,"") -> ISO-NE | B49: 3 | C49: 3 | D49: =IF(E49=0,0,(E49*'Auction Simulation'!$B$40)/'Auction Simulation'!$B$41-1) -> 0.1806865252 | E49: 1.083 | F49: 0
D51: NYISO
D52: Quantity (UCAP RM %) | E52: Quantity (% of RR) | F52: Price (% of Net Cone)
A53: =D51 -> NYISO | B53: 1 | C53: 1 | D53: =IF(E53=0,0,(E53*'Auction Simulation'!$B$40)/'Auction Simulation'!$B$41-1) -> 0 | E53: 0 | F53: 1.837679628
A54: =A53 -> NYISO | B54: 2 | C54: 2 | D54: =IF(E54=0,0,(E54*'Auction Simulation'!$B$40)/'Auction Simulation'!$B$41-1) -> 0.01814410456 | E54: 0.9339058604 | F54: 1.837679628
A55: =A54 -> NYISO | B55: 3 | C55: 3 | D55: =IF(E55=0,0,(E55*'Auction Simulation'!$B$40)/'Auction Simulation'!$B$41-1) -> 0.09019993096 | E55: 1 | F55: 1.185
A56: =A55 -> NYISO | B56: 4 | C56: 4 | D56: =IF(E56=0,0,(E56*'Auction Simulation'!$B$40)/'Auction Simulation'!$B$41-1) -> 0.2210239227 | E56: 1.12 | F56: 0

Sheet LOLE Data
B2: LOLE | F2: Quantities for LOLE Lines | K2: Lines for Chart
B3: (events/yr) | C3: (yr/event) | D3: (1-in-X) | F3: (% of RR) | G3: (% UCAP RM) | H3: (UCAP MW) | M3: X | N3: Y
B6: 0.2 | C6: 5 | D6: 1-in-5 | F6: 0.9896124445 | G6: 0.07887541871 | H6: 164401.8414 | K6: =$D$6 -> 1-in-5 | M6: =INDEX($H$6:$H$21,MATCH($K6,$D$6:$D$21,0)) -> 164401.8414 | N6: 0
B7: 0.1666666667 | C7: 6 | D7: 1-in-6 | F7: 0.9923327198 | G7: 0.08184106261 | H7: 164853.7539 | K7: =K6 -> 1-in-5 | M7: =INDEX($H$6:$H$21,MATCH($K7,$D$6:$D$21,0)) -> 164401.8414 | N7: 600
B8: 0.1428571429 | C8: 7 | D8: 1-in-7 | F8: 0.9946326798 | G8: 0.0843484788 | H8: 165235.8405
B9: 0.125 | C9: 8 | D9: 1-in-8 | F9: 0.9966249957 | G9: 0.0865205015 | H9: 165566.819 | K9: =$D$11 -> 1-in-10 | M9: =INDEX($H$6:$H$21,MATCH($K9,$D$6:$D$21,0)) -> 166119.9152 | N9: 0
B10: 0.1111111111 | C10: 9 | D10: 1-in-9 | F10: 0.9983823429 | G10: 0.0884363613 | H10: 165858.7627 | K10: =K9 -> 1-in-10 | M10: =INDEX($H$6:$H$21,MATCH($K10,$D$6:$D$21,0)) -> 166119.9152 | N10: 600
B11: 0.1 | C11: 10 | D11: 1-in-10 | F11: 0.9999543435 | G11: 0.09015015629 | H11: 166119.9152
B12: 0.06666666667 | C12: 15 | D12: 1-in-15 | F12: 1.006003967 | G12: 0.09674545499 | H12: 167124.924 | K12: =$D$21 -> 1-in-100 | M12: =INDEX($H$6:$H$21,MATCH($K12,$D$6:$D$21,0)) -> 171827.2329 | N12: 0
B13: 0.05 | C13: 20 | D13: 1-in-20 | F13: 1.010296243 | G13: 0.1014248939 | H13: 167837.989 | K13: =K12 -> 1-in-100 | M13: =INDEX($H$6:$H$21,MATCH($K13,$D$6:$D$21,0)) -> 171827.2329 | N13: 600
B14: 0.03333333333 | C14: 30 | D14: 1-in-30 | F14: 1.016345866 | G14: 0.1080201926 | H14: 168842.9978
B15: 0.025 | C15: 40 | D15: 1-in-40 | F15: 1.020638142 | G15: 0.1126996315 | H15: 169556.0629
B16: 0.02 | C16: 50 | D16: 1-in-50 | F16: 1.023967489 | G16: 0.1163292863 | H16: 170109.1591
B17: 0.01666666667 | C17: 60 | D17: 1-in-60 | F17: 1.026687765 | G17: 0.1192949302 | H17: 170561.0716
B18: 0.01428571429 | C18: 70 | D18: 1-in-70 | F18: 1.028987725 | G18: 0.1218023464 | H18: 170943.1582
B19: 0.0125 | C19: 80 | D19: 1-in-80 | F19: 1.030980041 | G19: 0.1239743691 | H19: 171274.1367
B20: 0.01111111111 | C20: 90 | D20: 1-in-90 | F20: 1.032737388 | G20: 0.1258902289 | H20: 171566.0804
B21: 0.01 | C21: 100 | D21: 1-in-100 | F21: 1.034309388 | G21: 0.1276040238 | H21: 171827.2329
